fUST/lending_fUST_20240628
["ID","MTS","AMOUNT","RATE_DAILY","PERIOD"]
[330518112,1719556241912,-134.93383231,0.00038356,30]
[330518113,1719556242243,-315.59320145,0.00038356,30]
[330518124,1719556243902,-307.37781046,0.00038346,3]
[330518126,1719556243914,-373.92750671,0.00038346,3]
[330518136,1719556246939,-202.02468283,0.00038346,3]
[330518137,1719556246949,-49.47296624,0.00038356,30]
[330518138,1719556246959,-500.0,0.00038356,30]
[330518139,1719556246968,-519.92,0.00038356,30]
[330518140,1719556246978,-500.0,0.00038356,30]
[330518141,1719556246987,-500.0,0.00038356,10]
[330518142,1719556246996,-354.65484422,0.00038356,30]
[330518150,1719556607119,178.498445,0.00021096,2]
[330518151,1719556740987,143.07896671,0.00021096,2]
[330518152,1719556741010,166.666666,0.00021096,2]
[330518167,1719557083879,11147.45043014,0.00014998,2]
[330518168,1719557117077,3769.18827951,0.00014998,2]
[330518170,1719557216022,3769.18827951,0.00014998,2]
[330518171,1719557233092,-157.2682199,0.00018179,2]
[330518172,1719557233113,-155.00138827,0.00018179,2]
[330518173,1719557233136,-355.46178493,0.00018179,2]
[330518174,1719557233155,-191.18583394,0.00018179,2]
[330518175,1719557233174,-723.78639686,0.00018179,2]
[330518176,1719557233194,-63.87322011,0.00018179,2]
[330518177,1719557236225,-222.58544737,0.00018179,2]
[330518178,1719557236274,-155.30237999,0.00018179,2]
[330518179,1719557236315,-580.70270839,0.00018179,2]
[330518180,1719557236360,-175.161654,0.00021096,2]
[330518181,1719557236430,-449.47063521,0.00022022,2]
[330518182,1719557236458,-933.34700406,0.0002243,2]
[330518183,1719557236479,-9.58967736,0.0002448,2]
[330518185,1719557342665,168.04133986,0.00014999,2]
[330518186,1719557346159,-267.19433174,0.00016255,2]
[330518187,1719557346184,-154.82195475,0.00016255,2]
[330518188,1719557346204,-767.0228442,0.0002448,2]
[330518189,1719557348024,259.82642088,0.00014999,2]
[330518190,1719557350115,-456.37449421,0.0002448,2]
[330518191,1719557355124,-456.37449421,0.0002448,2]
[330518192,1719557357127,-198.4086292,0.0002448,2]
[330518193,1719557358106,-456.37449421,0.0002448,2]
[330518194,1719557368143,-1434.63332348,0.0002448,2]
[330518195,1719557368163,-4757.4458487,0.00024534,2]
[330518196,1719557368182,-170.483113,0.00025331,2]
[330518197,1719557368203,-1490.91716075,0.00025869,2]
[330518198,1719557368223,-150.0,0.000265,2]
[330518199,1719557372141,-155.04591088,0.00027399,2]
[330518200,1719557372161,-490.54850109,0.00027399,2]
[330518201,1719557372180,-126.01216149,0.00027999,2]
[330518202,1719557402805,1962.9791639,0.00026837,2]
[330518209,1719557432894,-306.21363925,0.00026737,2]
[330518210,1719557432905,-130.2368089,0.00026837,2]
[330518211,1719557432914,-2142.33635981,0.00027194,2]
[330518212,1719557432923,-155.12229113,0.00027194,2]
[330518213,1719557432932,-300.07647617,0.00027399,2]
[330518214,1719557432942,-755.45153777,0.00027399,2]
[330518215,1719557432951,-899.99483813,0.00027399,2]
[330518216,1719557432960,-546.86804884,0.00027999,7]
[330518217,1719557432972,-302.0,0.00027999,7]
[330518334,1719557438814,-1000.0,0.00028387,2]
[330518335,1719557438823,-24004.9283044,0.00028388,2]
[330518336,1719557438833,-163.724839,0.00028783,2]
[330518337,1719557438842,-490.54850109,0.00029672,2]
[330518338,1719557438983,-1490.91716075,0.00029672,2]
[330518339,1719557438993,-1667.28328461,0.00029672,2]
[330518340,1719557439002,-7375.0,0.0003,2]
[330518341,1719557439012,-609.39368332,0.0003169,2]
[330518342,1719557439022,-609.39368331,0.00033332,2]
[330518343,1719557439032,-609.39368331,0.00034973,2]
[330518344,1719557439042,-154.90116528,0.00035292,4]
[330518345,1719557439052,-153.0,0.00035332,2]
[330518346,1719557439064,-153.0,0.00035332,2]
[330518347,1719557439073,-153.0,0.00035332,2]
[330518348,1719557439084,-153.0,0.00035332,2]
[330518349,1719557439094,-153.0,0.00035332,2]
[330518350,1719557439103,-153.0,0.00035332,2]
[330518351,1719557439113,-153.0,0.00035332,2]
[330518352,1719557439123,-153.0,0.00035332,2]
[330518353,1719557439134,-153.0,0.00035332,2]
[330518354,1719557439144,-153.0,0.00035332,2]
[330518355,1719557439155,-153.0,0.00035332,2]
[330518356,1719557439166,-153.0,0.00035332,2]
[330518357,1719557439176,-153.0,0.00035332,2]
[330518358,1719557439186,-153.0,0.00035332,2]
[330518359,1719557439197,-153.0,0.00035332,2]
[330518360,1719557439208,-153.0,0.00035332,2]
[330518361,1719557439218,-153.0,0.00035332,2]
[330518362,1719557439227,-153.0,0.00035332,2]
[330518363,1719557439238,-153.0,0.00035332,2]
[330518364,1719557439248,-154.80649189,0.00035999,4]
[330518365,1719557439258,-609.39368331,0.00036615,2]
[330518366,1719557439268,-155.01661009,0.00037,4]
[330518367,1719557439278,-531.11088939,0.00037899,4]
[330518368,1719557439288,-305.95603168,0.00037999,4]
[330518369,1719557439298,-423.96490432,0.00038,2]
[330518370,1719557439308,-153.0,0.00038082,2]
[330518371,1719557439318,-153.0,0.00038082,2]
[330518372,1719557439327,-153.0,0.00038082,2]
[330518373,1719557439337,-150.0,0.00038249,2]
[330518374,1719557439347,-772.0,0.00038249,2]
[330518375,1719557439357,-2000.0,0.00038256,2]
[330518376,1719557439367,-609.39368331,0.00038256,2]
[330518377,1719557439377,-10000.0,0.00038335,45]
[330518378,1719557439388,-206.15,0.00038336,3]
[330518379,1719557439398,-618.47,0.00038336,3]
[330518380,1719557439407,-38820.54054153,0.00038345,7]
[330518381,1719557439417,-2481.2059693,0.00038346,4]
[330518382,1719557439427,-34736.8835702,0.00038346,4]
[330518383,1719557439437,-151.0,0.00038355,2]
[330518384,1719557439447,-151.0,0.00038355,2]
[330518385,1719557439456,-151.0,0.00038355,2]
[330518386,1719557439466,-151.0,0.00038355,2]
[330518387,1719557439476,-151.0,0.00038355,2]
[330518388,1719557439486,-151.0,0.00038355,2]
[330518389,1719557439495,-942.49,0.00038355,2]
[330518390,1719557439504,-942.49,0.00038355,2]
[330518391,1719557439514,-942.49,0.00038355,2]
[330518392,1719557439523,-942.49,0.00038355,2]
[330518393,1719557439532,-10460.86693169,0.00038356,7]
[330518394,1719557439542,-1218.22,0.00038356,30]
[330518395,1719557439551,-598.82,0.00038356,30]
[330518396,1719557439563,-500.0,0.00038356,30]
[330518397,1719557439572,-500.0,0.00038356,30]
[330518398,1719557439582,-500.0,0.00038356,30]
[330518399,1719557439592,-500.0,0.00038356,30]
[330518400,1719557439602,-250.0,0.00038356,30]
[330518401,1719557439611,-500.0,0.00038356,30]
[330518402,1719557439621,-577.09,0.00038356,30]
[330518403,1719557439631,-500.0,0.00038356,30]
[330518404,1719557439642,-500.0,0.00038356,30]
[330518405,1719557439652,-500.0,0.00038356,30]
[330518406,1719557439663,-500.0,0.00038356,30]
[330518407,1719557439674,-1089.79,0.00038356,30]
[330518408,1719557439684,-500.0,0.00038356,30]
[330518409,1719557439696,-500.0,0.00038356,30]
[330518410,1719557439707,-500.0,0.00038356,30]
[330518411,1719557439716,-500.0,0.00038356,30]
[330518412,1719557439726,-500.0,0.00038356,30]
[330518413,1719557439735,-500.0,0.00038356,30]
[330518414,1719557439746,-500.0,0.00038356,2]
[330518415,1719557439756,-500.0,0.00038356,30]
[330518416,1719557439766,-804.88,0.00038356,30]
[330518417,1719557439778,-500.0,0.00038356,30]
[330518418,1719557439787,-500.0,0.00038356,30]
[330518419,1719557439796,-500.0,0.00038356,30]
[330518420,1719557439805,-655.33,0.00038356,30]
[330518421,1719557439816,-500.0,0.00038356,30]
[330518422,1719557439825,-500.0,0.00038356,30]
[330518423,1719557439835,-500.0,0.00038356,30]
[330518424,1719557439844,-500.0,0.00038356,30]
[330518425,1719557439854,-865.21,0.00038356,30]
[330518426,1719557439864,-500.0,0.00038356,30]
[330518427,1719557439874,-515.8906925,0.00038356,30]
[330518428,1719557439883,-500.0,0.00038356,30]
[330518429,1719557439893,-513.53642244,0.00038356,30]
[330518430,1719557439902,-500.0,0.00038356,30]
[330518431,1719557439912,-500.0,0.00038356,30]
[330518432,1719557439921,-500.0,0.00038356,30]
[330518433,1719557439931,-500.0,0.00038356,30]
[330518434,1719557439940,-531.78585268,0.00038356,30]
[330518435,1719557439949,-500.0,0.00038356,30]
[330518436,1719557439960,-500.0,0.00038356,30]
[330518437,1719557439970,-500.0,0.00038356,30]
[330518438,1719557439980,-500.0,0.00038356,30]
[330518439,1719557439990,-500.0,0.00038356,30]
[330518440,1719557440000,-500.0,0.00038356,30]
[330518441,1719557440009,-500.0,0.00038356,30]
[330518442,1719557440019,-500.0,0.00038356,30]
[330518443,1719557440029,-500.0,0.00038356,30]
[330518444,1719557440039,-500.0,0.00038356,30]
[330518445,1719557440049,-500.0,0.00038356,30]
[330518446,1719557440059,-699.63,0.00038356,30]
[330518447,1719557440069,-750.82,0.00038356,30]
[330518448,1719557440079,-500.0,0.00038356,30]
[330518449,1719557440089,-500.0,0.00038356,30]
[330518450,1719557440099,-500.0,0.00038356,30]
[330518451,1719557440108,-500.0,0.00038356,30]
[330518452,1719557440117,-500.0,0.00038356,30]
[330518453,1719557440126,-500.0,0.00038356,30]
[330518454,1719557440136,-500.0,0.00038356,30]
[330518455,1719557440145,-270.06,0.00038356,7]
[330518456,1719557440155,-500.0,0.00038356,30]
[330518457,1719557440164,-500.0,0.00038356,30]
[330518458,1719557440173,-500.0,0.00038356,30]
[330518459,1719557440182,-20325.93,0.00038356,30]
[330518460,1719557440191,-500.0,0.00038356,30]
[330518461,1719557440201,-500.0,0.00038356,30]
[330518462,1719557440210,-500.0,0.00038356,30]
[330518463,1719557440219,-1611.91,0.00038356,30]
[330518464,1719557440228,-521.63,0.00038356,30]
[330518465,1719557440237,-539.44,0.00038356,30]
[330518466,1719557440247,-500.0,0.00038356,30]
[330518467,1719557440256,-500.0,0.00038356,30]
[330518468,1719557440266,-864.76,0.00038356,30]
[330518469,1719557440276,-500.0,0.00038356,30]
[330518470,1719557440287,-500.0,0.00038356,30]
[330518471,1719557440296,-500.0,0.00038356,30]
[330518472,1719557440305,-500.0,0.00038356,30]
[330518473,1719557440317,-500.0,0.00038356,30]
[330518474,1719557440326,-500.0,0.00038356,30]
[330518475,1719557440339,-500.0,0.00038356,30]
[330518476,1719557440349,-500.0,0.00038356,30]
[330518477,1719557440358,-500.0,0.00038356,30]
[330518478,1719557440368,-581.53,0.00038356,30]
[330518479,1719557440377,-500.0,0.00038356,30]
[330518480,1719557440386,-501.14981253,0.00038356,30]
[330518481,1719557440396,-500.0,0.00038356,30]
[330518482,1719557440406,-500.0,0.00038356,30]
[330518483,1719557440416,-500.0,0.00038356,30]
[330518484,1719557440425,-505.15032901,0.00038356,30]
[330518487,1719557440435,-500.0,0.00038356,30]
[330518490,1719557440444,-500.0,0.00038356,30]
[330518492,1719557440454,-664.29,0.00038356,30]
[330518495,1719557440463,-2253.11,0.00038356,30]
[330518498,1719557440472,-500.0,0.00038356,30]
[330518500,1719557440482,-500.0,0.00038356,30]
[330518503,1719557440492,-786.17,0.00038356,30]
[330518506,1719557440501,-500.0,0.00038356,30]
[330518508,1719557440511,-500.0,0.00038356,30]
[330518510,1719557440521,-1445.11,0.00038356,30]
[330518512,1719557440530,-449.56119948,0.00038356,10]
[330518514,1719557440540,-331.88807004,0.00038356,30]
[330518516,1719557440550,-667.44,0.00038356,30]
[330518518,1719557440559,-500.0,0.00038356,30]
[330518520,1719557440569,-500.0,0.00038356,30]
[330518522,1719557440580,-500.0,0.00038356,30]
[330518524,1719557440589,-755.03,0.00038356,30]
[330518526,1719557440599,-500.0,0.00038356,30]
[330518528,1719557440609,-500.0,0.00038356,30]
[330518530,1719557440619,-500.0,0.00038356,30]
[330518532,1719557440628,-500.0,0.00038356,30]
[330518534,1719557440639,-500.0,0.00038356,30]
[330518537,1719557440648,-151.0,0.00038356,7]
[330518540,1719557440658,-151.0,0.00038356,7]
[330518542,1719557440667,-151.0,0.00038356,7]
[330518545,1719557440676,-500.0,0.00038356,30]
[330518548,1719557440686,-166.406082,0.00038356,7]
[330518550,1719557440699,-574.75,0.00038356,30]
[330518552,1719557440710,-954.03,0.00038356,30]
[330518554,1719557440720,-500.0,0.00038356,30]
[330518555,1719557440730,-500.0,0.00038356,30]
[330518557,1719557440742,-1071.45,0.00038356,30]
[330518559,1719557440752,-500.0,0.00038356,30]
[330518561,1719557440762,-500.0,0.00038356,28]
[330518562,1719557440773,-1773.39,0.00038356,30]
[330518563,1719557440784,-500.0,0.00038356,30]
[330518564,1719557440794,-993.49,0.00038356,30]
[330518565,1719557440803,-2367.61,0.00038356,30]
[330518566,1719557440814,-500.0,0.00038356,30]
[330518567,1719557440825,-500.0,0.00038356,2]
[330518568,1719557440835,-637.16,0.00038356,30]
[330518569,1719557440845,-500.0,0.00038356,30]
[330518570,1719557440854,-500.0,0.00038356,30]
[330518571,1719557440863,-727.09,0.00038356,30]
[330518573,1719557440873,-516.52853778,0.00038356,30]
[330518575,1719557440882,-651.01,0.00038356,30]
[330518576,1719557440892,-335.71939004,0.00038356,30]
[330518579,1719557440911,-330.95060996,0.00038356,30]
[330518581,1719557440920,-500.0,0.00038356,30]
[330518588,1719557441023,-506.47,0.00038356,30]
[330518589,1719557441034,-730.29,0.00038356,30]
[330518590,1719557441043,-500.0,0.00038356,30]
[330518591,1719557441053,-949.13,0.00038356,30]
[330518592,1719557441063,-500.0,0.00038356,30]
[330518593,1719557441072,-627.9,0.00038356,30]
[330518594,1719557441081,-732.75,0.00038356,30]
[330518595,1719557441090,-477.48200325,0.00038356,30]
[330518596,1719557441103,-43.33799675,0.00038356,30]
[330518597,1719557441112,-1553.38,0.00038356,30]
[330518598,1719557441121,-509.91893683,0.00038356,30]
[330518599,1719557441130,-500.0,0.00038356,30]
[330518600,1719557441139,-720.81,0.00038356,30]
[330518601,1719557441149,-200.0,0.00038356,7]
[330518602,1719557441158,-797.92,0.00038356,30]
[330518604,1719557441167,-509.57,0.00038356,30]
[330518606,1719557441177,-260.31763757,0.00038356,30]
[330518608,1719557441186,-500.0,0.00038356,30]
[330518609,1719557441195,-500.0,0.00038356,30]
[330518610,1719557441205,-500.0,0.00038356,30]
[330518611,1719557441214,-500.0,0.00038356,30]
[330518612,1719557441223,-578.13,0.00038356,30]
[330518613,1719557441232,-500.0,0.00038356,2]
[330518614,1719557441241,-500.0,0.00038356,30]
[330518615,1719557441250,-500.0,0.00038356,30]
[330518616,1719557441259,-500.0,0.00038356,30]
[330518617,1719557441268,-500.0,0.00038356,30]
[330518618,1719557441278,-698.31,0.00038356,30]
[330518619,1719557441287,-500.0,0.00038356,30]
[330518620,1719557441296,-500.0,0.00038356,30]
[330518621,1719557441306,-500.0,0.00038356,30]
[330518622,1719557441316,-500.0,0.00038356,30]
[330518623,1719557441325,-500.0,0.00038356,30]
[330518624,1719557441334,-500.0,0.00038356,30]
[330518625,1719557441343,-914.31,0.00038356,30]
[330518626,1719557441353,-528.3593317,0.00038356,30]
[330518627,1719557441362,-500.0,0.00038356,30]
[330518628,1719557441371,-500.0,0.00038356,30]
[330518629,1719557441380,-500.0,0.00038356,30]
[330518630,1719557441389,-500.0,0.00038356,2]
[330518631,1719557441398,-500.0,0.00038356,30]
[330518632,1719557441407,-500.0,0.00038356,30]
[330518633,1719557441417,-500.0,0.00038356,30]
[330518634,1719557441428,-500.0,0.00038356,30]
[330518635,1719557441437,-2037.56,0.00038356,30]
[330518636,1719557441446,-500.0,0.00038356,30]
[330518637,1719557441456,-500.0,0.00038356,30]
[330518638,1719557441466,-566.7,0.00038356,30]
[330518639,1719557441478,-3343.66,0.00038356,30]
[330518640,1719557441487,-651.69,0.00038356,30]
[330518641,1719557441497,-505.46171266,0.00038356,30]
[330518642,1719557441507,-500.0,0.00038356,30]
[330518643,1719557441518,-500.0,0.00038356,30]
[330518644,1719557441528,-902.104085,0.00038356,7]
[330518645,1719557441539,-902.104085,0.00038356,7]
[330518646,1719557441549,-151.0,0.00038356,7]
[330518647,1719557441559,-154.764188,0.00038356,7]
[330518648,1719557441570,-1531.55,0.00038356,30]
[330518649,1719557441579,-1440.4,0.00038356,30]
[330518650,1719557441589,-500.0,0.00038356,30]
[330518651,1719557441598,-500.0,0.00038356,30]
[330518652,1719557441607,-410.89281927,0.00038356,30]
[330518653,1719557441617,-500.0,0.00038356,30]
[330518654,1719557441628,-637.46,0.00038356,30]
[330518655,1719557441639,-500.0,0.00038356,30]
[330518656,1719557441651,-810.7,0.00038356,30]
[330518657,1719557441661,-500.0,0.00038356,30]
[330518658,1719557441671,-547.66,0.00038356,30]
[330518659,1719557441681,-500.0,0.00038356,30]
[330518660,1719557441692,-777.58,0.00038356,30]
[330518661,1719557441705,-360.754446,0.00038356,7]
[330518662,1719557441716,-360.754446,0.00038356,7]
[330518663,1719557441725,-360.754446,0.00038356,7]
[330518664,1719557441735,-360.754446,0.00038356,7]
[330518665,1719557441746,-360.754446,0.00038356,7]
[330518666,1719557441756,-360.754446,0.00038356,7]
[330518667,1719557441766,-360.754446,0.00038356,7]
[330518668,1719557441777,-500.0,0.00038356,30]
[330518669,1719557441786,-360.754446,0.00038356,7]
[330518670,1719557441796,-360.754446,0.00038356,7]
[330518671,1719557441805,-360.754446,0.00038356,7]
[330518672,1719557441816,-360.754446,0.00038356,7]
[330518673,1719557441826,-360.754446,0.00038356,7]
[330518674,1719557441835,-360.754446,0.00038356,7]
[330518675,1719557441844,-360.754446,0.00038356,7]
[330518676,1719557441854,-659.7,0.00038356,30]
[330518677,1719557441864,-360.754446,0.00038356,7]
[330518678,1719557441873,-360.754446,0.00038356,7]
[330518679,1719557441882,-360.754446,0.00038356,7]
[330518680,1719557441891,-360.754446,0.00038356,7]
[330518681,1719557441900,-360.754446,0.00038356,7]
[330518682,1719557441909,-360.75445,0.00038356,7]
[330518683,1719557441919,-500.0,0.00038356,30]
[330518684,1719557441928,-803.18,0.00038356,30]
[330518685,1719557441937,-248.611199,0.00038356,7]
[330518686,1719557441946,-248.611199,0.00038356,7]
[330518687,1719557441955,-248.611199,0.00038356,7]
[330518688,1719557441965,-447.90601301,0.00038356,30]
[330518689,1719557441974,-500.0,0.00038356,30]
[330518690,1719557441983,-248.611199,0.00038356,7]
[330518691,1719557441992,-248.611199,0.00038356,7]
[330518692,1719557442001,-248.611199,0.00038356,7]
[330518693,1719557442010,-248.611199,0.00038356,7]
[330518694,1719557442019,-248.611199,0.00038356,7]
[330518695,1719557442029,-1843.95,0.00038356,30]
[330518696,1719557442038,-248.611199,0.00038356,7]
[330518697,1719557442047,-248.611199,0.00038356,7]
[330518698,1719557442056,-248.611199,0.00038356,7]
[330518699,1719557442066,-248.611199,0.00038356,7]
[330518700,1719557442075,-248.611199,0.00038356,7]
[330518701,1719557442085,-500.0,0.00038356,30]
[330518702,1719557442094,-248.611199,0.00038356,7]
[330518703,1719557442103,-248.611199,0.00038356,7]
[330518704,1719557442113,-248.611199,0.00038356,7]
[330518705,1719557442122,-248.611199,0.00038356,7]
[330518706,1719557442131,-248.611199,0.00038356,7]
[330518707,1719557442140,-537.85049035,0.00038356,30]
[330518708,1719557442149,-500.0,0.00038356,30]
[330518709,1719557442157,-535.4224069,0.00038356,7]
[330518710,1719557442167,-500.0,0.00038356,30]
[330518711,1719557442176,-651.28,0.00038356,30]
[330518712,1719557442185,-806.28,0.00038356,30]
[330518713,1719557442194,-500.0,0.00038356,30]
[330518714,1719557442203,-500.0,0.00038356,30]
[330518715,1719557442212,-500.0,0.00038356,30]
[330518716,1719557442220,-1042.69,0.00038356,30]
[330518717,1719557442229,-500.0,0.00038356,30]
[330518718,1719557442238,-500.0,0.00038356,30]
[330518719,1719557442247,-500.0,0.00038356,30]
[330518720,1719557442256,-500.0,0.00038356,30]
[330518721,1719557442265,-605.13384022,0.00038356,30]
[330518722,1719557442274,-500.0,0.00038356,30]
[330518723,1719557442283,-541.6,0.00038356,30]
[330518724,1719557442292,-500.0,0.00038356,30]
[330518725,1719557442301,-274.83275361,0.00038356,30]
[330518726,1719557442310,-648.81,0.00038356,30]
[330518727,1719557442319,-500.0,0.00038356,30]
[330518728,1719557442328,-704.16,0.00038356,30]
[330518729,1719557442337,-500.0,0.00038356,30]
[330518730,1719557442346,-500.0,0.00038356,30]
[330518731,1719557442355,-565.7181646,0.00038356,30]
[330518732,1719557442364,-573.32,0.00038356,30]
[330518733,1719557442372,-500.0,0.00038356,30]
[330518734,1719557442381,-500.0,0.00038356,30]
[330518735,1719557442390,-500.0,0.00038356,30]
[330518736,1719557442399,-1928.6,0.00038356,30]
[330518737,1719557442408,-500.0,0.00038356,30]
[330518738,1719557442417,-815.55,0.00038356,30]
[330518739,1719557442426,-500.0,0.00038356,30]
[330518740,1719557442435,-2356.21,0.00038356,30]
[330518741,1719557442443,-500.0,0.00038356,30]
[330518742,1719557442452,-500.0,0.00038356,30]
[330518743,1719557442461,-523.24,0.00038356,30]
[330518744,1719557442470,-500.0,0.00038356,30]
[330518745,1719557442479,-979.07,0.00038356,30]
[330518746,1719557442488,-1147.14,0.00038356,30]
[330518747,1719557442497,-500.0,0.00038356,30]
[330518748,1719557442507,-500.0,0.00038356,30]
[330518749,1719557442516,-1731.03,0.00038356,30]
[330518750,1719557442527,-598.37,0.00038356,30]
[330518751,1719557442536,-1252.8,0.00038356,30]
[330518752,1719557442546,-500.0,0.00038356,30]
[330518753,1719557442556,-540.62,0.00038356,30]
[330518754,1719557442566,-500.0,0.00038356,30]
[330518755,1719557442575,-500.0,0.00038356,2]
[330518756,1719557442584,-500.0,0.00038356,30]
[330518757,1719557442593,-867.31,0.00038356,30]
[330518758,1719557442602,-791.35,0.00038356,30]
[330518759,1719557442611,-2644.72,0.00038356,30]
[330518760,1719557442620,-500.0,0.00038356,30]
[330518761,1719557442629,-606.09,0.00038356,30]
[330518762,1719557442639,-500.0,0.00038356,30]
[330518763,1719557442649,-500.0,0.00038356,30]
[330518764,1719557442659,-500.0,0.00038356,30]
[330518765,1719557442668,-2483.19,0.00038356,30]
[330518766,1719557442677,-1433.39,0.00038356,120]
[330518767,1719557442687,-522.82,0.00038356,30]
[330518768,1719557442698,-768.94,0.00038356,30]
[330518769,1719557442708,-500.0,0.00038356,30]
[330518770,1719557442717,-996.55,0.00038356,30]
[330518771,1719557442814,-500.0,0.00038356,30]
[330518772,1719557442824,-151.0,0.00038356,7]
[330518773,1719557442834,-151.0,0.00038356,7]
[330518774,1719557442843,-151.0,0.00038356,7]
[330518775,1719557442852,-151.0,0.00038356,7]
[330518776,1719557442862,-151.0,0.00038356,7]
[330518777,1719557442872,-151.0,0.00038356,7]
[330518778,1719557442881,-183.359466,0.00038356,7]
[330518779,1719557442890,-500.0,0.00038356,14]
[330518780,1719557442899,-500.12892507,0.00038356,30]
[330518781,1719557442909,-774.56,0.00038356,30]
[330518782,1719557442920,-500.0,0.00038356,30]
[330518783,1719557442929,-500.0,0.00038356,30]
[330518784,1719557442938,-500.0,0.00038356,30]
[330518785,1719557442947,-2706.07,0.00038356,30]
[330518786,1719557442957,-500.0,0.00038356,30]
[330518787,1719557442966,-2532.65,0.00038356,30]
[330518788,1719557442975,-596.99,0.00038356,30]
[330518789,1719557442983,-549.97,0.00038356,30]
[330518790,1719557442993,-13646.19,0.00038356,30]
[330518791,1719557443003,-500.0,0.00038356,30]
[330518792,1719557443012,-550.12,0.00038356,30]
[330518793,1719557443021,-10675.68,0.00038356,30]
[330518794,1719557443030,-291.50816455,0.00038356,30]
[330518795,1719557443039,-2978.28,0.00038356,30]
[330518796,1719557443049,-516.64450034,0.00038356,30]
[330518797,1719557443058,-500.0,0.00038356,30]
[330518798,1719557443068,-500.0,0.00038356,30]
[330518799,1719557443077,-500.0,0.00038356,30]
[330518800,1719557443087,-500.0,0.00038356,30]
[330518801,1719557443096,-500.0,0.00038356,30]
[330518802,1719557443105,-500.0,0.00038356,30]
[330518803,1719557443114,-500.0,0.00038356,30]
[330518804,1719557443123,-500.0,0.00038356,30]
[330518805,1719557443132,-500.0,0.00038356,30]
[330518806,1719557443146,-498.20327389,0.00038356,30]
[330518807,1719557443156,-500.0,0.00038356,30]
[330518808,1719557443166,-602.16,0.00038356,30]
[330518809,1719557443175,-500.0,0.00038356,30]
[330518810,1719557443185,-500.0,0.00038356,30]
[330518811,1719557443198,-634.47,0.00038356,30]
[330518812,1719557443208,-634.47,0.00038356,30]
[330518813,1719557443217,-500.0,0.00038356,30]
[330518814,1719557443226,-1448.21,0.00038356,30]
[330518815,1719557443234,-1253.8,0.00038356,30]
[330518816,1719557443243,-468.12852912,0.00038356,30]
[330518817,1719557443252,-500.0,0.00038356,30]
[330518818,1719557443261,-602.81,0.00038356,30]
[330518819,1719557443270,-637.68011194,0.00038356,30]
[330518820,1719557443279,-1012.91,0.00038356,30]
[330518821,1719557443287,-500.0,0.00038356,30]
[330518822,1719557443296,-500.0,0.00038356,30]
[330518823,1719557443305,-500.0,0.00038356,30]
[330518824,1719557443314,-6544.07,0.00038356,30]
[330518825,1719557443322,-164.20237994,0.00038356,30]
[330518826,1719557443331,-500.0,0.00038356,30]
[330518827,1719557443340,-500.0,0.00038356,30]
[330518828,1719557443349,-500.0,0.00038356,30]
[330518830,1719557443358,-722.39,0.00038356,30]
[330518832,1719557443367,-562.42,0.00038356,30]
[330518833,1719557443376,-500.0,0.00038356,30]
[330518834,1719557443385,-858.06,0.00038356,30]
[330518835,1719557443393,-3385.49,0.00038356,30]